[Event "*** Titled Tuesday Blitz"]
[Site "Chess.com"]
[Date "2019.04.02"]
[Round "8"]
[White "vgyogi"]
[Black "Denis_Palkovich"]
[Result "1-0"]
[WhiteElo "2156"]
[BlackElo "2219"]
[TimeControl "180+2"]
[EndTime "15:46:13 PDT"]
[Termination "vgyogi won by resignation"]

1. d4 {[%clk 0:03:01.9]} 1... d5 {[%clk 0:03:00.2]} 2. Bf4 {[%clk 0:03:01.6]}
2... Nf6 {[%clk 0:02:57.7]} 3. e3 {[%clk 0:03:02.9]} 3... c5 {[%clk 0:02:58.3]}
4. Nd2 {[%clk 0:03:03.3]} 4... Nc6 {[%clk 0:02:57.4]} 5. c3 {[%clk 0:03:04.1]}
5... Qb6 {[%clk 0:02:51.6]} 6. Rb1 {[%clk 0:02:57.3]} 6... Bf5 {[%clk 0:02:40]}
7. dxc5 {[%clk 0:02:58]} 7... Qxc5 {[%clk 0:02:38.2]} 8. Rc1 {[%clk 0:02:58.3]}
8... e5 {[%clk 0:02:38.2]} 9. Bg3 {[%clk 0:02:56.6]} 9... Be7 {[%clk 0:02:20.1]}
10. Ngf3 {[%clk 0:02:57.9]} 10... Nd7 {[%clk 0:02:17.3]} 11. Nb3 {[%clk
0:02:51.5]} 11... Qd6 {[%clk 0:02:13.6]} 12. Be2 {[%clk 0:02:50]} 12... O-O
{[%clk 0:02:13.9]} 13. O-O {[%clk 0:02:51.2]} 13... f6 {[%clk 0:02:09.2]} 14.
Nbd4 {[%clk 0:02:52.2]} 14... Bg6 {[%clk 0:02:04.5]} 15. Nb5 {[%clk 0:02:44.2]}
15... Qc5 {[%clk 0:01:58.9]} 16. Nc7 {[%clk 0:02:43]} 16... Rad8 {[%clk
0:01:45.3]} 17. Ne6 {[%clk 0:02:43.2]} 17... Qd6 {[%clk 0:01:43.4]} 18. Nxf8
{[%clk 0:02:44]} 18... Nxf8 {[%clk 0:01:42.9]} 19. c4 {[%clk 0:02:40.2]} 19...
d4 {[%clk 0:01:19.4]} 20. exd4 {[%clk 0:02:41.1]} 20... Nxd4 {[%clk 0:01:20]}
21. Nxd4 {[%clk 0:02:38.1]} 21... Qxd4 {[%clk 0:01:21.2]} 22. Qb3 {[%clk
0:02:35.4]} 22... b6 {[%clk 0:01:11.5]} 23. Rfd1 {[%clk 0:02:35.7]} 23... Qc5
{[%clk 0:01:10.5]} 24. Rxd8 {[%clk 0:02:36.3]} 24... Bxd8 {[%clk 0:01:11.3]} 25.
Rd1 {[%clk 0:02:37.3]} 25... Be7 {[%clk 0:01:09.2]} 26. Qe3 {[%clk 0:02:38.5]}
26... Qc7 {[%clk 0:01:06.5]} 27. b3 {[%clk 0:02:38.2]} 27... Ne6 {[%clk
0:01:02.7]} 28. Bf3 {[%clk 0:02:35.1]} 28... Nd4 {[%clk 0:01:01]} 29. Rxd4
{[%clk 0:02:29.7]} 29... exd4 {[%clk 0:01:01.3]} 30. Qe6+ {[%clk 0:02:30.2]}
30... Bf7 {[%clk 0:01:01.4]} 31. Qxf7+ {[%clk 0:02:30.1]} 31... Kxf7 {[%clk
0:01:02.2]} 32. Bxc7 {[%clk 0:02:31.6]} 1-0

[Event "*** Titled Tuesday Blitz"]
[Site "Chess.com"]
[Date "2019.04.02"]
[Round "8"]
[White "wonderfultime"]
[Black "Last7Samurai"]
[Result "1-0"]
[WhiteElo "2904"]
[BlackElo "2736"]
[TimeControl "180+2"]
[EndTime "15:46:21 PDT"]
[Termination "wonderfultime won by resignation"]

1. d4 {[%clk 0:03:01.9]} 1... d5 {[%clk 0:02:56.9]} 2. Nf3 {[%clk 0:03:03.2]}
2... Nf6 {[%clk 0:02:56.8]} 3. Bf4 {[%clk 0:03:03.5]} 3... c5 {[%clk 0:02:56.8]}
4. c3 {[%clk 0:03:03.5]} 4... Nc6 {[%clk 0:02:57.5]} 5. e3 {[%clk 0:03:05]} 5...
Qb6 {[%clk 0:02:56.7]} 6. Qc2 {[%clk 0:03:04.6]} 6... Bf5 {[%clk 0:02:55.4]} 7.
dxc5 {[%clk 0:03:05.9]} 7... Bxc2 {[%clk 0:02:51.9]} 8. cxb6 {[%clk 0:03:07.8]}
8... axb6 {[%clk 0:02:53.2]} 9. Na3 {[%clk 0:03:09.5]} 9... Be4 {[%clk
0:02:43.7]} 10. Nb5 {[%clk 0:03:01.6]} 10... O-O-O {[%clk 0:02:25.4]} 11. Bc7
{[%clk 0:02:51.5]} 11... Rd7 {[%clk 0:02:24.5]} 12. Bxb6 {[%clk 0:02:52.9]}
12... e6 {[%clk 0:02:22.2]} 13. a4 {[%clk 0:02:50.9]} 13... Bxf3 {[%clk
0:02:05.2]} 14. gxf3 {[%clk 0:02:51.5]} 14... Ne5 {[%clk 0:02:07.1]} 15. Be2
{[%clk 0:02:40.9]} 15... Be7 {[%clk 0:02:02.5]} 16. a5 {[%clk 0:02:27.8]} 16...
g6 {[%clk 0:01:56.7]} 17. O-O {[%clk 0:02:26.1]} 17... g5 {[%clk 0:01:54.6]} 18.
a6 {[%clk 0:02:21.8]} 18... bxa6 {[%clk 0:01:51]} 19. Rxa6 {[%clk 0:02:23.7]}
19... Kb7 {[%clk 0:01:50]} 20. Rfa1 {[%clk 0:02:24.1]} 20... Nc6 {[%clk
0:01:51.5]} 21. Bd4 {[%clk 0:02:15.3]} 21... Nxd4 {[%clk 0:01:47.8]} 22. Nxd4
{[%clk 0:02:03.5]} 22... Bc5 {[%clk 0:01:34.7]} 23. Bb5 {[%clk 0:02:00.4]} 23...
Bxd4 {[%clk 0:01:26.6]} 24. Bxd7 {[%clk 0:01:59.8]} 24... Bb6 {[%clk 0:01:20]}
25. Bb5 {[%clk 0:01:55.6]} 25... h5 {[%clk 0:01:21.5]} 26. R6a4 {[%clk
0:01:56.3]} 26... g4 {[%clk 0:01:19.9]} 27. Rf4 {[%clk 0:01:53.4]} 27... Rh6
{[%clk 0:01:18.6]} 28. Ba6+ {[%clk 0:01:52.8]} 28... Kc7 {[%clk 0:01:18.8]} 29.
Be2 {[%clk 0:01:52.8]} 1-0

[Event "*** Titled Tuesday Blitz"]
[Site "Chess.com"]
[Date "2019.04.02"]
[Round "8"]
[White "Miguelito"]
[Black "Andreikka"]
[Result "0-1"]
[WhiteElo "2661"]
[BlackElo "2862"]
[TimeControl "180+2"]
[EndTime "15:46:37 PDT"]
[Termination "Andreikka won by resignation"]

1. e4 {[%clk 0:03:01.9]} 1... e5 {[%clk 0:03:01]} 2. Nf3 {[%clk 0:03:02.8]} 2...
Nc6 {[%clk 0:03:02.4]} 3. Bb5 {[%clk 0:03:03.8]} 3... Nf6 {[%clk 0:03:03.9]} 4.
O-O {[%clk 0:03:02.9]} 4... Nxe4 {[%clk 0:03:05]} 5. Re1 {[%clk 0:03:04.3]} 5...
Nd6 {[%clk 0:03:06.3]} 6. Nxe5 {[%clk 0:03:05.9]} 6... Be7 {[%clk 0:03:07.9]} 7.
Bf1 {[%clk 0:03:05.7]} 7... O-O {[%clk 0:03:09.4]} 8. d4 {[%clk 0:03:06.4]} 8...
Nf5 {[%clk 0:03:10]} 9. c3 {[%clk 0:03:05.3]} 9... Nxe5 {[%clk 0:03:09.9]} 10.
Rxe5 {[%clk 0:03:06.2]} 10... d5 {[%clk 0:03:09.7]} 11. Bd3 {[%clk 0:03:05.5]}
11... g6 {[%clk 0:03:10.7]} 12. Nd2 {[%clk 0:03:03.8]} 12... c6 {[%clk
0:03:11.4]} 13. Nf3 {[%clk 0:03:04.4]} 13... Bd6 {[%clk 0:03:12.9]} 14. Re1
{[%clk 0:03:04.4]} 14... f6 {[%clk 0:03:13]} 15. Bd2 {[%clk 0:03:01.5]} 15...
Bd7 {[%clk 0:03:10.3]} 16. h3 {[%clk 0:03:00.1]} 16... Qc7 {[%clk 0:03:03.5]}
17. Qc2 {[%clk 0:02:59.7]} 17... Rae8 {[%clk 0:02:57.3]} 18. Rxe8 {[%clk
0:02:40]} 18... Rxe8 {[%clk 0:02:59.2]} 19. Re1 {[%clk 0:02:41.1]} 19... Rxe1+
{[%clk 0:03:00.7]} 20. Bxe1 {[%clk 0:02:41.7]} 20... Kf7 {[%clk 0:03:00.5]} 21.
Qe2 {[%clk 0:02:42.4]} 21... Ne7 {[%clk 0:03:01]} 22. Bd2 {[%clk 0:02:40.1]}
22... b5 {[%clk 0:02:58.2]} 23. b4 {[%clk 0:02:31.9]} 23... Bf5 {[%clk
0:02:56.5]} 24. Ne1 {[%clk 0:02:31.8]} 24... Bxd3 {[%clk 0:02:55.8]} 25. Nxd3
{[%clk 0:02:32.4]} 25... Nf5 {[%clk 0:02:54.1]} 26. Qf3 {[%clk 0:02:19]} 26...
a5 {[%clk 0:02:52.1]} 27. a3 {[%clk 0:01:57.5]} 27... a4 {[%clk 0:02:52.6]} 28.
g3 {[%clk 0:01:54.9]} 28... Qe7 {[%clk 0:02:40.5]} 29. Bf4 {[%clk 0:01:36.3]}
29... Qe4 {[%clk 0:02:39.1]} 30. Kg2 {[%clk 0:01:24.2]} 30... Bxf4 {[%clk
0:02:31.3]} 31. Nxf4 {[%clk 0:01:11.2]} 31... Qxf3+ {[%clk 0:02:13.8]} 32. Kxf3
{[%clk 0:01:11.7]} 32... Nd6 {[%clk 0:02:15.7]} 0-1

[Event "*** Titled Tuesday Blitz"]
[Site "Chess.com"]
[Date "2019.04.02"]
[Round "8"]
[White "GadimbayliA"]
[Black "Anahita_Gholami"]
[Result "1-0"]
[WhiteElo "2828"]
[BlackElo "2713"]
[TimeControl "180+2"]
[EndTime "15:47:05 PDT"]
[Termination "GadimbayliA won by resignation"]

1. e4 {[%clk 0:03:01.9]} 1... e5 {[%clk 0:03:01]} 2. Nf3 {[%clk 0:03:02.6]} 2...
Nc6 {[%clk 0:03:02.3]} 3. Nc3 {[%clk 0:03:02.6]} 3... Nf6 {[%clk 0:03:03.1]} 4.
d4 {[%clk 0:03:03.7]} 4... exd4 {[%clk 0:03:05]} 5. Nxd4 {[%clk 0:03:05.4]} 5...
Bb4 {[%clk 0:03:06.5]} 6. Nxc6 {[%clk 0:03:06.9]} 6... bxc6 {[%clk 0:03:08.4]}
7. Bd3 {[%clk 0:03:08.3]} 7... O-O {[%clk 0:03:10]} 8. O-O {[%clk 0:03:08.8]}
8... Re8 {[%clk 0:03:11.4]} 9. Bg5 {[%clk 0:03:07.4]} 9... Rb8 {[%clk
0:03:11.5]} 10. Na4 {[%clk 0:03:07.9]} 10... d5 {[%clk 0:02:06.5]} 11. exd5
{[%clk 0:02:54.4]} 11... cxd5 {[%clk 0:02:08.4]} 12. c3 {[%clk 0:02:49.3]} 12...
Bd6 {[%clk 0:02:07.4]} 13. Qf3 {[%clk 0:02:30.6]} 13... Re5 {[%clk 0:01:56.5]}
14. Bf4 {[%clk 0:02:10.3]} 14... Bg4 {[%clk 0:01:52.1]} 15. Qg3 {[%clk
0:02:11.2]} 15... Nh5 {[%clk 0:01:45.3]} 16. Qxg4 {[%clk 0:02:08.4]} 16... Nxf4
{[%clk 0:01:45.6]} 17. Qxf4 {[%clk 0:02:10.3]} 17... Rh5 {[%clk 0:01:44.1]} 18.
Qf3 {[%clk 0:01:30.6]} 18... Bxh2+ {[%clk 0:01:40.7]} 19. Kh1 {[%clk 0:01:31.9]}
19... g6 {[%clk 0:01:37.9]} 20. g4 {[%clk 0:01:32.9]} 20... Rh4 {[%clk
0:01:33.8]} 21. Kg2 {[%clk 0:01:30.7]} 21... h5 {[%clk 0:01:30.1]} 22. Rh1
{[%clk 0:01:26.7]} 22... Rxg4+ {[%clk 0:01:25.5]} 23. Qxg4 {[%clk 0:01:27.8]}
23... hxg4 {[%clk 0:01:24.5]} 24. Rxh2 {[%clk 0:01:29.7]} 24... Qf6 {[%clk
0:01:23]} 25. Bc2 {[%clk 0:01:09.6]} 25... Qf3+ {[%clk 0:01:19.6]} 26. Kg1
{[%clk 0:01:10]} 26... Re8 {[%clk 0:01:17.3]} 27. Rf1 {[%clk 0:01:07.6]} 1-0

[Event "*** Titled Tuesday Blitz"]
[Site "Chess.com"]
[Date "2019.04.02"]
[Round "8"]
[White "vugarrasulov"]
[Black "Andrjywa"]
[Result "1-0"]
[WhiteElo "2838"]
[BlackElo "2525"]
[TimeControl "180+2"]
[EndTime "15:47:09 PDT"]
[Termination "vugarrasulov won by resignation"]

1. e4 {[%clk 0:03:01.9]} 1... c5 {[%clk 0:02:18.8]} 2. Nc3 {[%clk 0:03:01.6]}
2... Nc6 {[%clk 0:02:17.8]} 3. Bb5 {[%clk 0:03:01.2]} 3... g6 {[%clk 0:02:14]}
4. f4 {[%clk 0:03:00.2]} 4... Bg7 {[%clk 0:02:14.6]} 5. Nf3 {[%clk 0:03:01.5]}
5... e6 {[%clk 0:02:14.4]} 6. Bxc6 {[%clk 0:03:01.2]} 6... bxc6 {[%clk
0:02:15.3]} 7. O-O {[%clk 0:03:01.9]} 7... Ne7 {[%clk 0:02:16.8]} 8. d3 {[%clk
0:03:01.4]} 8... d5 {[%clk 0:02:17.6]} 9. e5 {[%clk 0:03:01.8]} 9... O-O {[%clk
0:02:18.4]} 10. Na4 {[%clk 0:02:57.6]} 10... Qa5 {[%clk 0:02:15.7]} 11. b3
{[%clk 0:02:58.5]} 11... f6 {[%clk 0:02:16.3]} 12. Ba3 {[%clk 0:02:58.1]} 12...
Nf5 {[%clk 0:01:45.6]} 13. Bxc5 {[%clk 0:02:58.6]} 13... Re8 {[%clk 0:01:44.7]}
14. exf6 {[%clk 0:02:54.3]} 14... Bxf6 {[%clk 0:01:45.1]} 15. Ne5 {[%clk
0:02:56.2]} 15... Ba6 {[%clk 0:01:12.8]} 16. Qe1 {[%clk 0:02:56.3]} 16... Qc7
{[%clk 0:01:04]} 17. g4 {[%clk 0:02:52.8]} 17... Nd6 {[%clk 0:00:40.9]} 18. Qg3
{[%clk 0:02:50.9]} 18... Nb7 {[%clk 0:00:32.2]} 19. Rae1 {[%clk 0:02:50.3]}
19... Bb5 {[%clk 0:00:30.7]} 20. Bd4 {[%clk 0:02:41.9]} 20... c5 {[%clk
0:00:28.9]} 21. Bb2 {[%clk 0:02:41.5]} 21... Bxa4 {[%clk 0:00:28.8]} 22. bxa4
{[%clk 0:02:42.3]} 22... d4 {[%clk 0:00:30.4]} 23. Nc4 {[%clk 0:02:41.1]} 23...
Nd6 {[%clk 0:00:24.6]} 24. f5 {[%clk 0:02:41.6]} 24... e5 {[%clk 0:00:20.5]} 25.
fxg6 {[%clk 0:02:42.9]} 25... Nxc4 {[%clk 0:00:16.9]} 26. dxc4 {[%clk
0:02:44.8]} 26... Rf8 {[%clk 0:00:15.6]} 27. gxh7+ {[%clk 0:02:41.2]} 27... Qxh7
{[%clk 0:00:17.5]} 28. g5 {[%clk 0:02:41.4]} 28... Bg7 {[%clk 0:00:18]} 29. g6
{[%clk 0:02:42.4]} 29... Qh5 {[%clk 0:00:18]} 30. Qg2 {[%clk 0:02:37.3]} 30...
Rae8 {[%clk 0:00:17.2]} 31. Ba3 {[%clk 0:02:26.2]} 31... Rxf1+ {[%clk
0:00:16.4]} 32. Qxf1 {[%clk 0:02:22.4]} 32... e4 {[%clk 0:00:17.2]} 33. Qf7+
{[%clk 0:02:23]} 1-0

[Event "*** Titled Tuesday Blitz"]
[Site "Chess.com"]
[Date "2019.04.02"]
[Round "8"]
[White "francogreek"]
[Black "SoltaniciR"]
[Result "0-1"]
[WhiteElo "2414"]
[BlackElo "2584"]
[TimeControl "180+2"]
[EndTime "15:47:11 PDT"]
[Termination "SoltaniciR won by resignation"]

1. Nf3 {[%clk 0:03:01.9]} 1... c5 {[%clk 0:02:59.2]} 2. g3 {[%clk 0:03:02.7]}
2... Nc6 {[%clk 0:02:54.6]} 3. Bg2 {[%clk 0:03:04]} 3... g6 {[%clk 0:02:55.3]}
4. O-O {[%clk 0:03:04.6]} 4... Bg7 {[%clk 0:02:56.4]} 5. e4 {[%clk 0:03:05.7]}
5... d6 {[%clk 0:02:55]} 6. c3 {[%clk 0:03:04.1]} 6... Nf6 {[%clk 0:02:55.4]} 7.
d4 {[%clk 0:03:04.1]} 7... O-O {[%clk 0:02:47.6]} 8. d5 {[%clk 0:02:57.6]} 8...
Nb8 {[%clk 0:02:48.3]} 9. Re1 {[%clk 0:02:57.8]} 9... Nbd7 {[%clk 0:02:25]} 10.
c4 {[%clk 0:02:52.3]} 10... a6 {[%clk 0:02:19.8]} 11. a4 {[%clk 0:02:49.8]}
11... Ng4 {[%clk 0:02:05.8]} 12. Nc3 {[%clk 0:02:41.7]} 12... Nge5 {[%clk
0:02:06.1]} 13. Nxe5 {[%clk 0:02:37.9]} 13... Nxe5 {[%clk 0:02:07]} 14. Qe2
{[%clk 0:02:38.5]} 14... e6 {[%clk 0:02:03.1]} 15. f4 {[%clk 0:02:37.1]} 15...
Nd7 {[%clk 0:02:04.2]} 16. dxe6 {[%clk 0:02:35.4]} 16... fxe6 {[%clk 0:02:04.4]}
17. Be3 {[%clk 0:02:35.8]} 17... Nb8 {[%clk 0:01:45.9]} 18. Red1 {[%clk
0:02:36.4]} 18... Qe7 {[%clk 0:01:46.3]} 19. e5 {[%clk 0:02:31.6]} 19... dxe5
{[%clk 0:01:46.4]} 20. Ne4 {[%clk 0:02:32.6]} 20... Nd7 {[%clk 0:01:40.7]} 21.
Rxd7 {[%clk 0:02:15.3]} 21... Qxd7 {[%clk 0:01:38.6]} 22. Nxc5 {[%clk
0:02:15.7]} 22... Qc7 {[%clk 0:01:33.9]} 23. fxe5 {[%clk 0:02:12]} 23... Qxe5
{[%clk 0:01:25.9]} 24. Rd1 {[%clk 0:02:09.4]} 24... Qxb2 {[%clk 0:01:22]} 25.
Qg4 {[%clk 0:01:42.4]} 25... Qc3 {[%clk 0:01:06.8]} 26. Rd3 {[%clk 0:01:07.9]}
26... Qe1+ {[%clk 0:01:04.9]} 0-1

[Event "*** Titled Tuesday Blitz"]
[Site "Chess.com"]
[Date "2019.04.02"]
[Round "8"]
[White "europa2012"]
[Black "HrvojeZagreb"]
[Result "1-0"]
[WhiteElo "2134"]
[BlackElo "2040"]
[TimeControl "180+2"]
[EndTime "15:47:47 PDT"]
[Termination "europa2012 won by resignation"]

1. d4 {[%clk 0:03:01.9]} 1... e6 {[%clk 0:03:00.9]} 2. c4 {[%clk 0:03:02.5]}
2... f5 {[%clk 0:03:01]} 3. Nc3 {[%clk 0:03:01.7]} 3... Nf6 {[%clk 0:03:02.1]}
4. Bg5 {[%clk 0:03:00.7]} 4... Be7 {[%clk 0:03:02.8]} 5. e3 {[%clk 0:03:00]}
5... O-O {[%clk 0:03:01.4]} 6. Nf3 {[%clk 0:03:00.1]} 6... d6 {[%clk 0:03:01.4]}
7. h4 {[%clk 0:03:01.2]} 7... b6 {[%clk 0:03:00.3]} 8. Be2 {[%clk 0:03:00.8]}
8... Bb7 {[%clk 0:03:01.4]} 9. Qb3 {[%clk 0:02:58.3]} 9... Kh8 {[%clk
0:03:00.1]} 10. O-O-O {[%clk 0:02:57.4]} 10... Ne4 {[%clk 0:02:55.4]} 11. Rdf1
{[%clk 0:02:47.3]} 11... Bxg5 {[%clk 0:02:21]} 12. hxg5 {[%clk 0:02:46.9]} 12...
Nxg5 {[%clk 0:02:21.9]} 13. d5 {[%clk 0:02:42.6]} 13... e5 {[%clk 0:02:18.2]}
14. Nh4 {[%clk 0:02:37.4]} 14... Kg8 {[%clk 0:02:14]} 15. f4 {[%clk 0:02:36.9]}
15... exf4 {[%clk 0:02:11.5]} 16. Rxf4 {[%clk 0:02:31.7]} 16... Qe7 {[%clk
0:02:03.8]} 17. Nxf5 {[%clk 0:02:28.4]} 17... Rxf5 {[%clk 0:02:01.3]} 18. Rxf5
{[%clk 0:02:29.6]} 18... Qxe3+ {[%clk 0:02:02.3]} 19. Kb1 {[%clk 0:02:28.5]}
19... Nd7 {[%clk 0:01:58.4]} 20. Qc2 {[%clk 0:02:28]} 20... h6 {[%clk
0:01:48.9]} 21. Qd3 {[%clk 0:02:12.3]} 21... Qxd3+ {[%clk 0:01:47.6]} 22. Bxd3
{[%clk 0:02:12.3]} 22... Ne5 {[%clk 0:01:47.7]} 23. Kc2 {[%clk 0:02:08.1]} 23...
Bc8 {[%clk 0:01:32.2]} 24. Rf4 {[%clk 0:02:01]} 24... Nxd3 {[%clk 0:01:20.7]}
25. Kxd3 {[%clk 0:02:01.6]} 25... Bd7 {[%clk 0:01:19.7]} 26. Rhf1 {[%clk
0:01:59.7]} 26... a6 {[%clk 0:01:18.1]} 27. Ne4 {[%clk 0:01:59.1]} 27... Nxe4
{[%clk 0:00:49.7]} 28. Rxe4 {[%clk 0:01:58.9]} 28... b5 {[%clk 0:00:46.9]} 29.
b3 {[%clk 0:01:53.4]} 29... Re8 {[%clk 0:00:31.8]} 30. Rxe8+ {[%clk 0:01:51.7]}
30... Bxe8 {[%clk 0:00:33.7]} 31. Re1 {[%clk 0:01:52.1]} 31... Bg6+ {[%clk
0:00:31]} 32. Kd4 {[%clk 0:01:52.5]} 32... Kf7 {[%clk 0:00:32.4]} 33. cxb5
{[%clk 0:01:50.4]} 33... axb5 {[%clk 0:00:32.1]} 34. a4 {[%clk 0:01:52]} 34...
bxa4 {[%clk 0:00:17.1]} 35. bxa4 {[%clk 0:01:53.2]} 1-0

[Event "*** Titled Tuesday Blitz"]
[Site "Chess.com"]
[Date "2019.04.02"]
[Round "8"]
[White "Lennis93"]
[Black "djogrodek1"]
[Result "0-1"]
[WhiteElo "2362"]
[BlackElo "2529"]
[TimeControl "180+2"]
[EndTime "15:47:59 PDT"]
[Termination "djogrodek1 won by checkmate"]

1. e4 {[%clk 0:03:01.9]} 1... c5 {[%clk 0:02:59.7]} 2. Nf3 {[%clk 0:03:02.7]}
2... Nc6 {[%clk 0:03:01.1]} 3. Bb5 {[%clk 0:03:02.6]} 3... g6 {[%clk 0:03:01.9]}
4. O-O {[%clk 0:03:03.5]} 4... Bg7 {[%clk 0:03:02]} 5. Re1 {[%clk 0:03:04.7]}
5... e5 {[%clk 0:03:02.6]} 6. c3 {[%clk 0:03:02.2]} 6... Nge7 {[%clk 0:03:01.6]}
7. d4 {[%clk 0:03:01.9]} 7... cxd4 {[%clk 0:03:00.7]} 8. cxd4 {[%clk 0:03:03]}
8... exd4 {[%clk 0:03:01.1]} 9. Bf4 {[%clk 0:03:02.8]} 9... d6 {[%clk
0:02:46.8]} 10. Nxd4 {[%clk 0:03:03.3]} 10... O-O {[%clk 0:02:47.9]} 11. Be3
{[%clk 0:02:50.9]} 11... d5 {[%clk 0:02:38]} 12. Nc3 {[%clk 0:02:49.1]} 12...
dxe4 {[%clk 0:02:32.1]} 13. Nxc6 {[%clk 0:02:49.5]} 13... bxc6 {[%clk 0:02:33]}
14. Bc4 {[%clk 0:02:49.1]} 14... Qa5 {[%clk 0:02:05.5]} 15. Qd6 {[%clk
0:02:46.8]} 15... Nf5 {[%clk 0:01:52.1]} 16. Qxc6 {[%clk 0:02:47]} 16... Nxe3
{[%clk 0:01:51.4]} 17. Rxe3 {[%clk 0:02:45.1]} 17... Bf5 {[%clk 0:01:52.7]} 18.
Nd5 {[%clk 0:02:26.2]} 18... Kh8 {[%clk 0:01:52.4]} 19. b4 {[%clk 0:02:19.6]}
19... Qd8 {[%clk 0:01:47.6]} 20. Rae1 {[%clk 0:02:11.1]} 20... Rc8 {[%clk
0:01:42.5]} 21. Qa6 {[%clk 0:02:09.5]} 21... Be6 {[%clk 0:01:30.3]} 22. Rd1
{[%clk 0:01:51.8]} 22... Qd7 {[%clk 0:01:23.8]} 23. Rxe4 {[%clk 0:01:43.2]}
23... Rfd8 {[%clk 0:01:24]} 24. Ne3 {[%clk 0:01:32.5]} 24... Bxc4 {[%clk
0:01:19.1]} 25. Qxc4 {[%clk 0:01:21.2]} 25... Qxd1+ {[%clk 0:01:14.2]} 26. Nxd1
{[%clk 0:01:14.3]} 26... Rxc4 {[%clk 0:01:14.9]} 27. Re1 {[%clk 0:00:51.6]}
27... Rc1 {[%clk 0:01:15.2]} 28. Kf1 {[%clk 0:00:47.9]} 28... Rdxd1 {[%clk
0:01:14.9]} 29. Rxd1 {[%clk 0:00:48.2]} 29... Rxd1+ {[%clk 0:01:16.8]} 30. Ke2
{[%clk 0:00:49.4]} 30... Ra1 {[%clk 0:01:18.7]} 31. Kd3 {[%clk 0:00:50.4]} 31...
Rxa2 {[%clk 0:01:20.5]} 32. f4 {[%clk 0:00:51.5]} 32... Rxg2 {[%clk 0:01:21.6]}
33. h4 {[%clk 0:00:52.5]} 33... Rg4 {[%clk 0:01:22.2]} 34. Ke4 {[%clk
0:00:53.6]} 34... Rxh4 {[%clk 0:01:23.5]} 35. b5 {[%clk 0:00:54.9]} 35... g5
{[%clk 0:01:24.9]} 36. Kf5 {[%clk 0:00:55.5]} 36... Rxf4+ {[%clk 0:01:26.1]} 37.
Kxg5 {[%clk 0:00:56.5]} 37... Rb4 {[%clk 0:01:26.7]} 38. Kh5 {[%clk 0:00:57.7]}
38... Bf6 {[%clk 0:01:26.4]} 39. b6 {[%clk 0:00:55.8]} 39... Rh4# {[%clk
0:01:28.3]} 0-1

[Event "*** Titled Tuesday Blitz"]
[Site "Chess.com"]
[Date "2019.04.02"]
[Round "8"]
[White "Shant_Sargsyan"]
[Black "norwaytoadog"]
[Result "1-0"]
[WhiteElo "2930"]
[BlackElo "2247"]
[TimeControl "180+2"]
[EndTime "15:48:01 PDT"]
[Termination "Shant_Sargsyan won on time"]

1. b3 {[%clk 0:03:01.9]} 1... Nf6 {[%clk 0:02:56.1]} 2. Bb2 {[%clk 0:03:03.8]}
2... e6 {[%clk 0:02:56.7]} 3. e3 {[%clk 0:02:59.3]} 3... a5 {[%clk 0:02:54.9]}
4. Nf3 {[%clk 0:03:01.2]} 4... a4 {[%clk 0:02:55.5]} 5. d4 {[%clk 0:03:02.4]}
5... a3 {[%clk 0:02:55.5]} 6. Bc1 {[%clk 0:03:03.4]} 6... d5 {[%clk 0:02:49.2]}
7. Bd3 {[%clk 0:03:05.3]} 7... Bd6 {[%clk 0:02:48.8]} 8. O-O {[%clk 0:03:07.2]}
8... b6 {[%clk 0:02:40.5]} 9. c4 {[%clk 0:03:09.1]} 9... Bb7 {[%clk 0:02:40.4]}
10. Nc3 {[%clk 0:03:10.3]} 10... c6 {[%clk 0:02:38.8]} 11. Qe2 {[%clk 0:03:11]}
11... O-O {[%clk 0:02:35.7]} 12. e4 {[%clk 0:03:12.1]} 12... dxe4 {[%clk
0:02:31.2]} 13. Nxe4 {[%clk 0:03:14]} 13... Be7 {[%clk 0:02:22.5]} 14. Bf4
{[%clk 0:03:13.7]} 14... Nbd7 {[%clk 0:02:15.1]} 15. Rad1 {[%clk 0:03:11.2]}
15... Qc8 {[%clk 0:02:01.2]} 16. Nd6 {[%clk 0:03:09.9]} 16... Bxd6 {[%clk
0:01:59.9]} 17. Bxd6 {[%clk 0:03:11.8]} 17... Re8 {[%clk 0:02:00.6]} 18. Ne5
{[%clk 0:03:11.5]} 18... c5 {[%clk 0:01:53.5]} 19. dxc5 {[%clk 0:03:12.6]} 19...
Nxc5 {[%clk 0:01:48.3]} 20. Bb1 {[%clk 0:03:13.8]} 20... Be4 {[%clk 0:01:42.5]}
21. Bxc5 {[%clk 0:03:08.8]} 21... Bxb1 {[%clk 0:01:37.6]} 22. Bxb6 {[%clk
0:03:09.7]} 22... Be4 {[%clk 0:01:24.5]} 23. Bd4 {[%clk 0:03:10.5]} 23... Bb7
{[%clk 0:01:02.9]} 24. Rfe1 {[%clk 0:03:06.8]} 24... Qc7 {[%clk 0:01:03.1]} 25.
Qe3 {[%clk 0:03:04.1]} 25... Rac8 {[%clk 0:00:56.5]} 26. h3 {[%clk 0:02:57.1]}
26... Qb8 {[%clk 0:00:56.3]} 27. Ba1 {[%clk 0:02:49.2]} 27... Rcd8 {[%clk
0:00:51.8]} 28. Qc1 {[%clk 0:02:47.1]} 28... Qa8 {[%clk 0:00:47.4]} 29. Qg5
{[%clk 0:02:46.5]} 29... h6 {[%clk 0:00:44.9]} 30. Qg3 {[%clk 0:02:47.3]} 30...
Rxd1 {[%clk 0:00:39.4]} 31. Rxd1 {[%clk 0:02:48.3]} 31... Rd8 {[%clk 0:00:40.2]}
32. Nd7 {[%clk 0:02:49.9]} 32... Rxd7 {[%clk 0:00:39.6]} 33. Rxd7 {[%clk
0:02:49.6]} 33... Ne8 {[%clk 0:00:20.4]} 34. Qd3 {[%clk 0:02:43.9]} 34... Qa5
{[%clk 0:00:20]} 35. Rxb7 {[%clk 0:02:36.2]} 35... Qe1+ {[%clk 0:00:16.7]} 36.
Qf1 {[%clk 0:02:37.8]} 36... Qe4 {[%clk 0:00:13.8]} 37. Rb8 {[%clk 0:02:38.5]}
37... Kf8 {[%clk 0:00:08.2]} 38. c5 {[%clk 0:02:38.6]} 38... Ke7 {[%clk
0:00:06.9]} 39. b4 {[%clk 0:02:38.8]} 39... Nf6 {[%clk 0:00:04.2]} 40. b5 {[%clk
0:02:40]} 40... Nd5 {[%clk 0:00:03.1]} 41. b6 {[%clk 0:02:41]} 41... Nf4 {[%clk
0:00:03.9]} 42. b7 {[%clk 0:02:41.1]} 42... Ne2+ {[%clk 0:00:03.4]} 43. Kh1
{[%clk 0:02:41.5]} 1-0